[Event "Titled Tuesday Blitz June 13 Early 2023"]
[White "Quintiliano Pinto, Renato R."]
[Black "Deac, Bogdan-Daniel"]
[WhiteFideId "2117568"]
[BlackFideId "1226380"]
[WhiteElo "2459"]
[BlackElo "2644"]
[Result "0-1"]
[Round "3"]
[TimeControl "180+2"]
[Date "2023.06.13"]
[WhiteClock "0:00:00"]
[BlackClock "0:00:42"]
[Board "13"]

1. Nf3 {[%clk 0:03:00]}  b6 {[%clk 0:02:59]} 2. g3 {[%clk 0:02:57]}  Bb7 {[%clk 0:02:59]} 3. Bg2 {[%clk 0:02:57]}  c5 {[%clk 0:03:00]} 4. O-O {[%clk 0:02:58]}  g6 {[%clk 0:03:01]} 5. c4 {[%clk 0:02:57]}  Bg7 {[%clk 0:03:01]} 6. Nc3 {[%clk 0:02:57]}  Nf6 {[%clk 0:03:02]} 7. b3 {[%clk 0:02:52]}  O-O {[%clk 0:02:57]} 8. Bb2 {[%clk 0:02:52]}  d6 {[%clk 0:02:57]} 9. d4 {[%clk 0:02:49]}  cxd4 {[%clk 0:02:56]} 10. Qxd4 {[%clk 0:02:50]}  Nbd7 {[%clk 0:02:55]} 11. Rad1 {[%clk 0:02:44]}  a6 {[%clk 0:02:50]} 12. Qd2 {[%clk 0:02:37]}  b5 {[%clk 0:02:42]} 13. cxb5 {[%clk 0:02:04]}  axb5 {[%clk 0:02:41]} 14. Nd4 {[%clk 0:02:05]}  Bxg2 {[%clk 0:02:37]} 15. Kxg2 {[%clk 0:02:06]}  b4 {[%clk 0:02:37]} 16. Na4 {[%clk 0:02:05]}  Qb8 {[%clk 0:02:33]} 17. f3 {[%clk 0:01:52]}  Qb7 {[%clk 0:02:22]} 18. Rc1 {[%clk 0:01:45]}  Rfc8 {[%clk 0:01:16]} 19. Rxc8+ {[%clk 0:01:42]}  Rxc8 {[%clk 0:01:16]} 20. Rc1 {[%clk 0:01:14]}  Nc5 {[%clk 0:01:05]} 21. Nxc5 {[%clk 0:01:06]}  dxc5 {[%clk 0:01:02]} 22. Nc2 {[%clk 0:00:19]}  Ne4 {[%clk 0:01:02]} 23. fxe4 {[%clk 0:00:08]}  Bxb2 {[%clk 0:00:58]} 24. Rd1 {[%clk 0:00:07]}  Qxe4+ {[%clk 0:00:58]} 25. Kg1 {[%clk 0:00:07]}  Ra8 {[%clk 0:00:42]} 26. Qd5 {[%clk 0:00:01]}  Qxd5 {[%clk 0:00:41]} 27. Rxd5 {[%clk 0:00:01]}  Rxa2 {[%clk 0:00:42]} 28. Rxc5 {[%clk 0:00:00]}  Bc3 {[%clk 0:00:42]} 0-1


[Site "https://www.chess.com"]

[Event "Titled Tuesday Blitz June 13 Early 2023"]
[White "Turayev, Shahruh"]
[Black "Sviridov, Valery"]
[WhiteFideId "14003856"]
[BlackFideId "4120680"]
[WhiteElo "2113"]
[BlackElo "2457"]
[Result "0-1"]
[Round "3"]
[TimeControl "180+2"]
[Date "2023.06.13"]
[WhiteClock "0:00:03"]
[BlackClock "0:01:20"]
[Board "14"]

1. e4 {[%clk 0:03:00]}  Nf6 {[%clk 0:02:58]} 2. Nc3 {[%clk 0:03:00]}  d6 {[%clk 0:02:57]} 3. d4 {[%clk 0:03:00]}  c6 {[%clk 0:02:58]} 4. f4 {[%clk 0:02:58]}  Qa5 {[%clk 0:02:58]} 5. Bd3 {[%clk 0:02:55]}  e5 {[%clk 0:02:57]} 6. Ne2 {[%clk 0:02:47]}  exd4 {[%clk 0:02:56]} 7. Nxd4 {[%clk 0:02:47]}  g6 {[%clk 0:02:57]} 8. Nb3 {[%clk 0:02:45]}  Qc7 {[%clk 0:02:56]} 9. O-O {[%clk 0:02:44]}  Bg7 {[%clk 0:02:57]} 10. Qe1 {[%clk 0:02:39]}  O-O {[%clk 0:02:55]} 11. Qh4 {[%clk 0:02:37]}  Nbd7 {[%clk 0:02:55]} 12. f5 {[%clk 0:02:37]}  b5 {[%clk 0:02:56]} 13. Bh6 {[%clk 0:02:35]}  Bb7 {[%clk 0:02:55]} 14. Nd4 {[%clk 0:02:08]}  Rae8 {[%clk 0:02:53]} 15. Nf3 {[%clk 0:01:55]}  b4 {[%clk 0:02:36]} 16. Ne2 {[%clk 0:01:53]}  c5 {[%clk 0:02:37]} 17. Ng5 {[%clk 0:01:46]}  c4 {[%clk 0:02:36]} 18. fxg6 {[%clk 0:01:34]}  fxg6 {[%clk 0:02:37]} 19. Bxg7 {[%clk 0:01:24]}  Kxg7 {[%clk 0:02:36]} 20. Nf4 {[%clk 0:01:13]}  Qb6+ {[%clk 0:02:28]} 21. Kh1 {[%clk 0:01:13]}  cxd3 {[%clk 0:02:29]} 22. Nfe6+ {[%clk 0:01:10]}  Kg8 {[%clk 0:02:29]} 23. Qh6 {[%clk 0:01:02]}  Rxe6 {[%clk 0:02:25]} 24. Nxe6 {[%clk 0:01:03]}  Rf7 {[%clk 0:02:26]} 25. cxd3 {[%clk 0:00:54]}  d5 {[%clk 0:02:16]} 26. Ng5 {[%clk 0:00:51]}  Re7 {[%clk 0:02:16]} 27. Rae1 {[%clk 0:00:36]}  dxe4 {[%clk 0:02:16]} 28. dxe4 {[%clk 0:00:37]}  Qd6 {[%clk 0:01:39]} 29. Qh4 {[%clk 0:00:23]}  Kg7 {[%clk 0:01:37]} 30. e5 {[%clk 0:00:15]}  Rxe5 {[%clk 0:01:37]} 31. Nxh7 {[%clk 0:00:11]}  Nxh7 {[%clk 0:01:26]} 32. Rf7+ {[%clk 0:00:11]}  Kxf7 {[%clk 0:01:24]} 33. Qxh7+ {[%clk 0:00:12]}  Ke8 {[%clk 0:01:20]} 34. Qh8+ {[%clk 0:00:12]}  Ke7 {[%clk 0:01:20]} 35. Qg7+ {[%clk 0:00:05]}  Kd8 {[%clk 0:01:20]} 36. Qg8+ {[%clk 0:00:06]}  Kc7 {[%clk 0:01:20]} 37. Rc1+ {[%clk 0:00:03]}  Bc6 {[%clk 0:01:20]} 0-1


[Site "https://www.chess.com"]

[Event "Titled Tuesday Blitz June 13 Early 2023"]
[White "Bortnyk, Olexandr"]
[Black "Wagner, Dennis"]
[WhiteFideId "14120828"]
[BlackFideId "24650684"]
[WhiteElo "2733"]
[BlackElo "2478"]
[Result "1/2-1/2"]
[Round "3"]
[TimeControl "180+2"]
[Date "2023.06.13"]
[WhiteClock "0:00:06"]
[BlackClock "0:00:11"]
[Board "18"]

1. e4 {[%clk 0:03:00]}  c5 {[%clk 0:02:59]} 2. c3 {[%clk 0:03:00]}  e6 {[%clk 0:02:57]} 3. d4 {[%clk 0:02:57]}  d5 {[%clk 0:02:58]} 4. exd5 {[%clk 0:02:50]}  exd5 {[%clk 0:02:58]} 5. Be3 {[%clk 0:02:49]}  c4 {[%clk 0:02:47]} 6. b3 {[%clk 0:02:49]}  cxb3 {[%clk 0:02:43]} 7. axb3 {[%clk 0:02:50]}  Nc6 {[%clk 0:02:43]} 8. Bd3 {[%clk 0:02:49]}  Bd6 {[%clk 0:02:40]} 9. Qf3 {[%clk 0:02:47]}  Nf6 {[%clk 0:02:37]} 10. h3 {[%clk 0:02:47]}  O-O {[%clk 0:02:33]} 11. Ne2 {[%clk 0:02:45]}  Re8 {[%clk 0:02:32]} 12. Nd2 {[%clk 0:02:40]}  Ne7 {[%clk 0:02:03]} 13. g4 {[%clk 0:02:24]}  Ng6 {[%clk 0:01:58]} 14. Bg5 {[%clk 0:01:50]}  h6 {[%clk 0:01:44]} 15. Bxf6 {[%clk 0:01:44]}  Qxf6 {[%clk 0:01:45]} 16. Qxf6 {[%clk 0:01:40]}  gxf6 {[%clk 0:01:46]} 17. Kd1 {[%clk 0:01:33]}  Bd7 {[%clk 0:01:40]} 18. Nf1 {[%clk 0:01:32]}  Nf4 {[%clk 0:01:33]} 19. Nxf4 {[%clk 0:01:19]}  Bxf4 {[%clk 0:01:33]} 20. Nd2 {[%clk 0:01:13]}  a5 {[%clk 0:01:27]} 21. Kc2 {[%clk 0:01:06]}  b5 {[%clk 0:01:24]} 22. Rhe1 {[%clk 0:01:00]}  Rxe1 {[%clk 0:01:20]} 23. Rxe1 {[%clk 0:01:01]}  Kf8 {[%clk 0:01:20]} 24. Ra1 {[%clk 0:00:57]}  a4 {[%clk 0:01:18]} 25. b4 {[%clk 0:00:54]}  Ke7 {[%clk 0:01:10]} 26. Nb1 {[%clk 0:00:49]}  Kd6 {[%clk 0:00:55]} 27. Na3 {[%clk 0:00:50]}  Rb8 {[%clk 0:00:55]} 28. Re1 {[%clk 0:00:49]}  Rb6 {[%clk 0:00:45]} 29. Bf5 {[%clk 0:00:48]}  Be6 {[%clk 0:00:22]} 30. Kd3 {[%clk 0:00:44]}  Rb8 {[%clk 0:00:20]} 31. Rg1 {[%clk 0:00:42]}  Rb7 {[%clk 0:00:18]} 32. Ke2 {[%clk 0:00:41]}  Rb8 {[%clk 0:00:17]} 33. Rd1 {[%clk 0:00:40]}  Kc6 {[%clk 0:00:16]} 34. Kf3 {[%clk 0:00:39]}  Bd6 {[%clk 0:00:15]} 35. Re1 {[%clk 0:00:39]}  Bxf5 {[%clk 0:00:13]} 36. gxf5 {[%clk 0:00:40]}  Rg8 {[%clk 0:00:13]} 37. h4 {[%clk 0:00:41]}  h5 {[%clk 0:00:12]} 38. Nc2 {[%clk 0:00:31]}  Rg4 {[%clk 0:00:12]} 39. Re8 {[%clk 0:00:32]}  Rxh4 {[%clk 0:00:10]} 40. Rc8+ {[%clk 0:00:30]}  Kd7 {[%clk 0:00:10]} 41. Rh8 {[%clk 0:00:23]}  Rh3+ {[%clk 0:00:11]} 42. Ke2 {[%clk 0:00:23]}  Rxc3 {[%clk 0:00:12]} 43. Kd2 {[%clk 0:00:22]}  Rc4 {[%clk 0:00:10]} 44. Kd3 {[%clk 0:00:17]}  Bxb4 {[%clk 0:00:10]} 45. Ne3 {[%clk 0:00:18]}  Rc3+ {[%clk 0:00:10]} 46. Ke2 {[%clk 0:00:19]}  a3 {[%clk 0:00:07]} 47. Ra8 {[%clk 0:00:19]}  Rb3 {[%clk 0:00:06]} 48. Nxd5 {[%clk 0:00:20]}  Rb2+ {[%clk 0:00:07]} 49. Kd3 {[%clk 0:00:20]}  Bd6 {[%clk 0:00:07]} 50. Nxf6+ {[%clk 0:00:18]}  Kc6 {[%clk 0:00:07]} 51. Ne4 {[%clk 0:00:14]}  Kb7 {[%clk 0:00:07]} 52. Ra5 {[%clk 0:00:11]}  Bc7 {[%clk 0:00:07]} 53. Rxa3 {[%clk 0:00:12]}  b4 {[%clk 0:00:07]} 54. Ra4 {[%clk 0:00:09]}  Bb6 {[%clk 0:00:06]} 55. d5 {[%clk 0:00:05]}  b3 {[%clk 0:00:03]} 56. Kc3 {[%clk 0:00:04]}  Rb1 {[%clk 0:00:03]} 57. Nd2 {[%clk 0:00:05]}  Rd1 {[%clk 0:00:02]} 58. Nxb3 {[%clk 0:00:03]}  Bxf2 {[%clk 0:00:03]} 59. Rb4+ {[%clk 0:00:03]}  Kc7 {[%clk 0:00:02]} 60. Rf4 {[%clk 0:00:03]}  Bg3 {[%clk 0:00:02]} 61. Rf3 {[%clk 0:00:04]}  Be5+ {[%clk 0:00:03]} 62. Kc4 {[%clk 0:00:04]}  Kd6 {[%clk 0:00:03]} 63. Rh3 {[%clk 0:00:04]}  Re1 {[%clk 0:00:02]} 64. Nd2 {[%clk 0:00:02]}  Rc1+ {[%clk 0:00:02]} 65. Kb4 {[%clk 0:00:02]}  Kxd5 {[%clk 0:00:03]} 66. Nb3 {[%clk 0:00:01]}  Rb1 {[%clk 0:00:03]} 67. Rxh5 {[%clk 0:00:02]}  f6 {[%clk 0:00:03]} 68. Rh4 {[%clk 0:00:01]}  Rb2 {[%clk 0:00:04]} 69. Ka3 {[%clk 0:00:02]}  Rb1 {[%clk 0:00:04]} 70. Rh3 {[%clk 0:00:02]}  Rf1 {[%clk 0:00:04]} 71. Nd2 {[%clk 0:00:02]}  Rxf5 {[%clk 0:00:04]} 72. Kb3 {[%clk 0:00:03]}  Ke6 {[%clk 0:00:05]} 73. Kc2 {[%clk 0:00:03]}  Rf4 {[%clk 0:00:05]} 74. Kd3 {[%clk 0:00:03]}  Rd4+ {[%clk 0:00:05]} 75. Ke2 {[%clk 0:00:03]}  Ra4 {[%clk 0:00:06]} 76. Rh8 {[%clk 0:00:03]}  Ra2 {[%clk 0:00:06]} 77. Kd3 {[%clk 0:00:03]}  Bf4 {[%clk 0:00:06]} 78. Nc4 {[%clk 0:00:03]}  Ra1 {[%clk 0:00:06]} 79. Re8+ {[%clk 0:00:03]}  Kf5 {[%clk 0:00:06]} 80. Rf8 {[%clk 0:00:03]}  Rd1+ {[%clk 0:00:07]} 81. Ke2 {[%clk 0:00:03]}  Rd4 {[%clk 0:00:07]} 82. Nb6 {[%clk 0:00:03]}  Rb4 {[%clk 0:00:06]} 83. Nd5 {[%clk 0:00:03]}  Re4+ {[%clk 0:00:06]} 84. Kf3 {[%clk 0:00:03]}  Be5 {[%clk 0:00:07]} 85. Ne7+ {[%clk 0:00:03]}  Ke6 {[%clk 0:00:06]} 86. Kxe4 {[%clk 0:00:04]}  Kxe7 {[%clk 0:00:07]} 87. Ra8 {[%clk 0:00:04]}  Ke6 {[%clk 0:00:07]} 88. Ra6+ {[%clk 0:00:04]}  Ke7 {[%clk 0:00:08]} 89. Kd5 {[%clk 0:00:05]}  Kf7 {[%clk 0:00:08]} 90. Rb6 {[%clk 0:00:04]}  Kg6 {[%clk 0:00:09]} 91. Ke4 {[%clk 0:00:05]}  Kf7 {[%clk 0:00:09]} 92. Kf5 {[%clk 0:00:05]}  Ke7 {[%clk 0:00:10]} 93. Rb3 {[%clk 0:00:05]}  Kd6 {[%clk 0:00:10]} 94. Rd3+ {[%clk 0:00:06]}  Kc5 {[%clk 0:00:10]} 95. Ke4 {[%clk 0:00:07]}  Kc4 {[%clk 0:00:11]} 96. Rd1 {[%clk 0:00:07]}  Kc5 {[%clk 0:00:11]} 97. Rc1+ {[%clk 0:00:07]}  Kd6 {[%clk 0:00:12]} 98. Rc2 {[%clk 0:00:07]}  Ke6 {[%clk 0:00:12]} 99. Rc4 {[%clk 0:00:07]}  Kd6 {[%clk 0:00:12]} 100. Ra4 {[%clk 0:00:07]}  Ke6 {[%clk 0:00:12]} 101. Ra6+ {[%clk 0:00:07]}  Kf7 {[%clk 0:00:13]} 102. Kd5 {[%clk 0:00:08]}  Kg6 {[%clk 0:00:13]} 103. Ra2 {[%clk 0:00:08]}  Kf7 {[%clk 0:00:13]} 104. Rg2 {[%clk 0:00:08]}  Kf8 {[%clk 0:00:12]} 105. Ke6 {[%clk 0:00:08]}  Bd4 {[%clk 0:00:12]} 106. Rd2 {[%clk 0:00:03]}  Be5 {[%clk 0:00:12]} 107. Rd7 {[%clk 0:00:04]}  Kg8 {[%clk 0:00:12]} 108. Re7 {[%clk 0:00:04]}  Kf8 {[%clk 0:00:12]} 109. Rf7+ {[%clk 0:00:04]}  Kg8 {[%clk 0:00:11]} 110. Ra7 {[%clk 0:00:04]}  Kf8 {[%clk 0:00:12]} 111. Ra2 {[%clk 0:00:03]}  Kg8 {[%clk 0:00:12]} 112. Rg2+ {[%clk 0:00:03]}  Kf8 {[%clk 0:00:12]} 113. Rg4 {[%clk 0:00:04]}  Bc3 {[%clk 0:00:11]} 114. Rh4 {[%clk 0:00:03]}  Be5 {[%clk 0:00:11]} 115. Rh8+ {[%clk 0:00:03]}  Kg7 {[%clk 0:00:11]} 116. Rc8 {[%clk 0:00:04]}  Bd4 {[%clk 0:00:10]} 117. Rc2 {[%clk 0:00:05]}  Be5 {[%clk 0:00:10]} 118. Ke7 {[%clk 0:00:05]}  Kg6 {[%clk 0:00:10]} 119. Ke6 {[%clk 0:00:05]}  Kg5 {[%clk 0:00:11]} 120. Rg2+ {[%clk 0:00:05]}  Kf4 {[%clk 0:00:12]} 121. Rf2+ {[%clk 0:00:05]}  Ke3 {[%clk 0:00:12]} 122. Rxf6 {[%clk 0:00:06]}  Bxf6 {[%clk 0:00:11]} 1/2-1/2


[Site "https://www.chess.com"]

[Event "Titled Tuesday Blitz June 13 Early 2023"]
[White "Matlakov, Maxim"]
[Black "Di Benedetto, Edoardo"]
[WhiteFideId "4168003"]
[BlackFideId "875740"]
[WhiteElo "2666"]
[BlackElo "2296"]
[Result "1-0"]
[Round "3"]
[TimeControl "180+2"]
[Date "2023.06.13"]
[WhiteClock "0:00:42"]
[BlackClock "0:00:04"]
[Board "19"]

1. e4 {[%clk 0:02:58]}  e6 {[%clk 0:02:59]} 2. d3 {[%clk 0:02:52]}  d5 {[%clk 0:02:59]} 3. Nd2 {[%clk 0:02:53]}  Nf6 {[%clk 0:02:58]} 4. Ngf3 {[%clk 0:02:51]}  c5 {[%clk 0:02:58]} 5. Qe2 {[%clk 0:02:51]}  g6 {[%clk 0:02:51]} 6. g3 {[%clk 0:02:49]}  Bg7 {[%clk 0:02:51]} 7. Bg2 {[%clk 0:02:49]}  O-O {[%clk 0:02:51]} 8. O-O {[%clk 0:02:49]}  Nc6 {[%clk 0:02:51]} 9. c3 {[%clk 0:02:49]}  b6 {[%clk 0:02:27]} 10. exd5 {[%clk 0:01:54]}  exd5 {[%clk 0:02:19]} 11. Nb3 {[%clk 0:01:53]}  Re8 {[%clk 0:02:07]} 12. Qc2 {[%clk 0:01:53]}  Bf5 {[%clk 0:01:56]} 13. Nh4 {[%clk 0:01:53]}  Be6 {[%clk 0:01:55]} 14. Re1 {[%clk 0:01:42]}  Qd7 {[%clk 0:01:53]} 15. Bf4 {[%clk 0:01:29]}  h6 {[%clk 0:01:43]} 16. Nf3 {[%clk 0:01:29]}  g5 {[%clk 0:01:27]} 17. Ne5 {[%clk 0:01:28]}  Nxe5 {[%clk 0:01:17]} 18. Bxe5 {[%clk 0:01:29]}  Bf5 {[%clk 0:01:10]} 19. Qd1 {[%clk 0:01:20]}  Rad8 {[%clk 0:01:05]} 20. d4 {[%clk 0:01:17]}  c4 {[%clk 0:01:01]} 21. Nd2 {[%clk 0:01:18]}  Bg4 {[%clk 0:00:46]} 22. Bf3 {[%clk 0:01:16]}  Bxf3 {[%clk 0:00:42]} 23. Qxf3 {[%clk 0:01:17]}  Nh7 {[%clk 0:00:42]} 24. Nf1 {[%clk 0:01:11]}  Nf8 {[%clk 0:00:40]} 25. Bxg7 {[%clk 0:01:11]}  Kxg7 {[%clk 0:00:40]} 26. Ne3 {[%clk 0:01:07]}  Ng6 {[%clk 0:00:31]} 27. Re2 {[%clk 0:00:50]}  Kh7 {[%clk 0:00:19]} 28. Nxd5 {[%clk 0:00:50]}  Nf4 {[%clk 0:00:08]} 29. gxf4 {[%clk 0:00:42]}  g4 {[%clk 0:00:04]} 30. Nf6+ {[%clk 0:00:42]} 1-0


[Site "https://www.chess.com"]

[Event "Titled Tuesday Blitz June 13 Early 2023"]
[White "Zhigalko, Sergei"]
[Black "benny_aizenberg"]
[WhiteFideId "13502956"]
[WhiteElo "2626"]
[BlackElo "2707"]
[Result "1-0"]
[Round "3"]
[TimeControl "180+2"]
[Date "2023.06.13"]
[WhiteClock "0:00:09"]
[BlackClock "0:00:00"]
[Board "23"]

1. e4 {[%clk 0:03:00]}  c5 {[%clk 0:02:58]} 2. Nf3 {[%clk 0:03:00]}  e6 {[%clk 0:02:57]} 3. c3 {[%clk 0:03:01]}  Nf6 {[%clk 0:02:51]} 4. e5 {[%clk 0:03:01]}  Nd5 {[%clk 0:02:51]} 5. Bc4 {[%clk 0:03:01]}  d6 {[%clk 0:02:50]} 6. d4 {[%clk 0:03:01]}  Nc6 {[%clk 0:02:42]} 7. O-O {[%clk 0:03:01]}  cxd4 {[%clk 0:02:31]} 8. cxd4 {[%clk 0:03:01]}  Be7 {[%clk 0:02:26]} 9. Bd2 {[%clk 0:03:00]}  O-O {[%clk 0:02:22]} 10. Nc3 {[%clk 0:02:59]}  Nxc3 {[%clk 0:02:18]} 11. Bxc3 {[%clk 0:02:59]}  dxe5 {[%clk 0:02:16]} 12. dxe5 {[%clk 0:02:59]}  a6 {[%clk 0:02:10]} 13. Qe2 {[%clk 0:02:57]}  b5 {[%clk 0:02:09]} 14. Bd3 {[%clk 0:02:57]}  Bb7 {[%clk 0:02:06]} 15. Rad1 {[%clk 0:02:48]}  Qc7 {[%clk 0:02:06]} 16. Qe4 {[%clk 0:02:48]}  g6 {[%clk 0:02:05]} 17. Qf4 {[%clk 0:02:48]}  Kg7 {[%clk 0:01:59]} 18. Bd2 {[%clk 0:02:38]}  Kh8 {[%clk 0:01:33]} 19. Qh6 {[%clk 0:02:33]}  Rad8 {[%clk 0:00:47]} 20. Ng5 {[%clk 0:02:17]}  Bxg5 {[%clk 0:00:42]} 21. Bxg5 {[%clk 0:02:18]}  Qxe5 {[%clk 0:00:42]} 22. Bxd8 {[%clk 0:02:18]}  Rxd8 {[%clk 0:00:43]} 23. Bxg6 {[%clk 0:02:14]}  Qg7 {[%clk 0:00:33]} 24. Qxg7+ {[%clk 0:02:07]}  Kxg7 {[%clk 0:00:34]} 25. Be4 {[%clk 0:02:08]}  Rb8 {[%clk 0:00:24]} 26. Bxc6 {[%clk 0:01:08]}  Bxc6 {[%clk 0:00:23]} 27. Rd6 {[%clk 0:01:09]}  Bd5 {[%clk 0:00:20]} 28. Rxa6 {[%clk 0:01:09]}  Rc8 {[%clk 0:00:21]} 29. b3 {[%clk 0:01:02]}  Rc2 {[%clk 0:00:20]} 30. f3 {[%clk 0:00:54]}  b4 {[%clk 0:00:18]} 31. h3 {[%clk 0:00:43]}  Kf6 {[%clk 0:00:18]} 32. Rf2 {[%clk 0:00:42]}  Rc1+ {[%clk 0:00:18]} 33. Kh2 {[%clk 0:00:42]}  Ke5 {[%clk 0:00:17]} 34. Rb6 {[%clk 0:00:42]}  Kd4 {[%clk 0:00:15]} 35. Rxb4+ {[%clk 0:00:41]}  Ke3 {[%clk 0:00:15]} 36. Rb2 {[%clk 0:00:39]}  f5 {[%clk 0:00:15]} 37. Rb5 {[%clk 0:00:32]}  Rd1 {[%clk 0:00:10]} 38. a4 {[%clk 0:00:30]}  e5 {[%clk 0:00:10]} 39. a5 {[%clk 0:00:27]}  e4 {[%clk 0:00:10]} 40. fxe4 {[%clk 0:00:15]}  fxe4 {[%clk 0:00:11]} 41. a6 {[%clk 0:00:13]}  Bc6 {[%clk 0:00:08]} 42. Rc5 {[%clk 0:00:12]}  Rd6 {[%clk 0:00:07]} 43. Ra2 {[%clk 0:00:10]}  Ba8 {[%clk 0:00:02]} 44. Rc8 {[%clk 0:00:11]}  Bd5 {[%clk 0:00:02]} 45. a7 {[%clk 0:00:11]}  Kf4 {[%clk 0:00:01]} 46. Rf8+ {[%clk 0:00:11]}  Ke5 {[%clk 0:00:01]} 47. Ra5 {[%clk 0:00:10]}  Kd4 {[%clk 0:00:01]} 48. Rxd5+ {[%clk 0:00:10]}  Rxd5 {[%clk 0:00:02]} 49. a8=Q {[%clk 0:00:11]}  e3 {[%clk 0:00:02]} 50. Qa7+ {[%clk 0:00:11]}  Kd3 {[%clk 0:00:03]} 51. Re8 {[%clk 0:00:12]}  Rd4 {[%clk 0:00:03]} 52. b4 {[%clk 0:00:11]}  Rxb4 {[%clk 0:00:02]} 53. Qxe3+ {[%clk 0:00:11]}  Kc2 {[%clk 0:00:03]} 54. Rc8+ {[%clk 0:00:10]}  Kb1 {[%clk 0:00:01]} 55. Qc1+ {[%clk 0:00:10]}  Ka2 {[%clk 0:00:02]} 56. Rc3 {[%clk 0:00:09]}  Rb2 {[%clk 0:00:01]} 57. Rc2 {[%clk 0:00:09]}  Rxc2 {[%clk 0:00:01]} 58. Qxc2+ {[%clk 0:00:09]}  Ka1 {[%clk 0:00:02]} 59. Qxh7 {[%clk 0:00:10]}  Ka2 {[%clk 0:00:00]} 60. Qb7 {[%clk 0:00:09]} 1-0


[Site "https://www.chess.com"]

[Event "Titled Tuesday Blitz June 13 Early 2023"]
[White "Tari, Aryan"]
[Black "Maatman, Nick"]
[WhiteFideId "1510045"]
[BlackFideId "1040391"]
[WhiteElo "2586"]
[BlackElo "2705"]
[Result "0-1"]
[Round "3"]
[TimeControl "180+2"]
[Date "2023.06.13"]
[WhiteClock "0:00:08"]
[BlackClock "0:00:24"]
[Board "24"]

1. e4 {[%clk 0:03:00]}  c5 {[%clk 0:02:59]} 2. Nf3 {[%clk 0:02:58]}  d6 {[%clk 0:03:00]} 3. Bb5+ {[%clk 0:02:56]}  Bd7 {[%clk 0:02:59]} 4. Bxd7+ {[%clk 0:02:54]}  Nxd7 {[%clk 0:03:00]} 5. O-O {[%clk 0:02:52]}  Ngf6 {[%clk 0:03:01]} 6. Re1 {[%clk 0:02:52]}  e6 {[%clk 0:02:58]} 7. b3 {[%clk 0:02:47]}  Be7 {[%clk 0:02:58]} 8. Bb2 {[%clk 0:02:47]}  O-O {[%clk 0:02:58]} 9. c4 {[%clk 0:02:47]}  a6 {[%clk 0:02:35]} 10. d4 {[%clk 0:02:44]}  cxd4 {[%clk 0:02:30]} 11. Nxd4 {[%clk 0:02:45]}  Qc7 {[%clk 0:02:29]} 12. Nc3 {[%clk 0:02:45]}  Rac8 {[%clk 0:02:21]} 13. Rc1 {[%clk 0:02:45]}  Rfd8 {[%clk 0:02:18]} 14. h3 {[%clk 0:02:40]}  Qb8 {[%clk 0:02:16]} 15. Qe2 {[%clk 0:02:38]}  Ne5 {[%clk 0:02:12]} 16. Na4 {[%clk 0:02:36]}  Nc6 {[%clk 0:02:05]} 17. Nxc6 {[%clk 0:02:24]}  bxc6 {[%clk 0:02:04]} 18. e5 {[%clk 0:02:24]}  dxe5 {[%clk 0:01:24]} 19. Bxe5 {[%clk 0:02:25]}  Qb4 {[%clk 0:01:23]} 20. Rcd1 {[%clk 0:02:19]}  Rxd1 {[%clk 0:01:16]} 21. Rxd1 {[%clk 0:02:19]}  Rd8 {[%clk 0:01:16]} 22. Rxd8+ {[%clk 0:02:15]}  Bxd8 {[%clk 0:01:17]} 23. Bc3 {[%clk 0:02:07]}  Qa3 {[%clk 0:01:07]} 24. g3 {[%clk 0:01:59]}  Be7 {[%clk 0:00:58]} 25. Kg2 {[%clk 0:01:56]}  h6 {[%clk 0:00:58]} 26. c5 {[%clk 0:01:39]}  Bxc5 {[%clk 0:00:40]} 27. Bxf6 {[%clk 0:01:39]}  gxf6 {[%clk 0:00:34]} 28. Qxa6 {[%clk 0:01:37]}  Bxf2 {[%clk 0:00:31]} 29. Qxc6 {[%clk 0:00:56]}  Qxa2 {[%clk 0:00:17]} 30. Nc3 {[%clk 0:00:57]}  Qc2 {[%clk 0:00:16]} 31. Qf3 {[%clk 0:00:44]}  Bd4+ {[%clk 0:00:14]} 32. Ne2 {[%clk 0:00:45]}  Be5 {[%clk 0:00:15]} 33. Qe3 {[%clk 0:00:41]}  Kg7 {[%clk 0:00:13]} 34. h4 {[%clk 0:00:41]}  Qb2 {[%clk 0:00:13]} 35. Kh3 {[%clk 0:00:40]}  f5 {[%clk 0:00:13]} 36. b4 {[%clk 0:00:37]}  Bf6 {[%clk 0:00:13]} 37. Nf4 {[%clk 0:00:37]}  Qxb4 {[%clk 0:00:11]} 38. Nh5+ {[%clk 0:00:36]}  Kg6 {[%clk 0:00:11]} 39. Nxf6 {[%clk 0:00:29]}  Kxf6 {[%clk 0:00:12]} 40. Qxh6+ {[%clk 0:00:30]}  Ke7 {[%clk 0:00:13]} 41. Qg5+ {[%clk 0:00:30]}  Ke8 {[%clk 0:00:13]} 42. h5 {[%clk 0:00:28]}  Qe1 {[%clk 0:00:11]} 43. Qg8+ {[%clk 0:00:24]}  Ke7 {[%clk 0:00:12]} 44. Qg5+ {[%clk 0:00:24]}  Kf8 {[%clk 0:00:12]} 45. Qh6+ {[%clk 0:00:20]}  Kg8 {[%clk 0:00:12]} 46. Qg5+ {[%clk 0:00:07]}  Kh7 {[%clk 0:00:12]} 47. Kh2 {[%clk 0:00:07]}  Qe2+ {[%clk 0:00:13]} 48. Kg1 {[%clk 0:00:08]}  Qg4 {[%clk 0:00:13]} 49. Qe3 {[%clk 0:00:02]}  Qxh5 {[%clk 0:00:13]} 50. Kg2 {[%clk 0:00:02]}  Qg4 {[%clk 0:00:13]} 51. Kf2 {[%clk 0:00:02]}  Kg6 {[%clk 0:00:13]} 52. Qa7 {[%clk 0:00:02]}  Qe4 {[%clk 0:00:13]} 53. Qb8 {[%clk 0:00:02]}  Qd5 {[%clk 0:00:13]} 54. Qg8+ {[%clk 0:00:02]}  Kf6 {[%clk 0:00:13]} 55. Qh8+ {[%clk 0:00:03]}  Ke7 {[%clk 0:00:13]} 56. Qh4+ {[%clk 0:00:03]}  Kd7 {[%clk 0:00:13]} 57. Qf6 {[%clk 0:00:03]}  Ke8 {[%clk 0:00:12]} 58. Qh8+ {[%clk 0:00:03]}  Ke7 {[%clk 0:00:13]} 59. Qh4+ {[%clk 0:00:04]}  Kd7 {[%clk 0:00:13]} 60. Qf6 {[%clk 0:00:05]}  Qd2+ {[%clk 0:00:12]} 61. Kg1 {[%clk 0:00:05]}  Qe1+ {[%clk 0:00:12]} 62. Kg2 {[%clk 0:00:05]}  Qe2+ {[%clk 0:00:13]} 63. Kg1 {[%clk 0:00:06]}  Qh5 {[%clk 0:00:14]} 64. Qd4+ {[%clk 0:00:06]}  Ke7 {[%clk 0:00:14]} 65. Qc5+ {[%clk 0:00:06]}  Kf6 {[%clk 0:00:14]} 66. Qd4+ {[%clk 0:00:07]}  Kg6 {[%clk 0:00:14]} 67. Qd8 {[%clk 0:00:07]}  Qg4 {[%clk 0:00:14]} 68. Qg8+ {[%clk 0:00:07]}  Kf6 {[%clk 0:00:15]} 69. Qd8+ {[%clk 0:00:07]}  Kg7 {[%clk 0:00:15]} 70. Kf2 {[%clk 0:00:06]}  Qg6 {[%clk 0:00:15]} 71. Qd4+ {[%clk 0:00:06]}  Qf6 {[%clk 0:00:15]} 72. Qd6 {[%clk 0:00:05]}  e5 {[%clk 0:00:15]} 73. Qd7 {[%clk 0:00:03]}  f4 {[%clk 0:00:15]} 74. Qg4+ {[%clk 0:00:02]}  Qg6 {[%clk 0:00:16]} 75. Qe2 {[%clk 0:00:01]}  Qxg3+ {[%clk 0:00:15]} 76. Kf1 {[%clk 0:00:02]}  f3 {[%clk 0:00:15]} 77. Qb2 {[%clk 0:00:01]}  Qg2+ {[%clk 0:00:15]} 78. Qxg2+ {[%clk 0:00:01]}  fxg2+ {[%clk 0:00:16]} 79. Kxg2 {[%clk 0:00:02]}  Kf6 {[%clk 0:00:16]} 80. Kf3 {[%clk 0:00:03]}  Ke6 {[%clk 0:00:17]} 81. Ke3 {[%clk 0:00:04]}  f5 {[%clk 0:00:18]} 82. Kf3 {[%clk 0:00:04]}  f4 {[%clk 0:00:18]} 83. Ke4 {[%clk 0:00:05]}  Kf6 {[%clk 0:00:19]} 84. Kf3 {[%clk 0:00:06]}  Kf5 {[%clk 0:00:20]} 85. Kf2 {[%clk 0:00:06]}  e4 {[%clk 0:00:21]} 86. Ke2 {[%clk 0:00:07]}  Ke5 {[%clk 0:00:22]} 87. Kf2 {[%clk 0:00:07]}  e3+ {[%clk 0:00:22]} 88. Ke2 {[%clk 0:00:08]}  Kf5 {[%clk 0:00:23]} 89. Ke1 {[%clk 0:00:09]}  Ke4 {[%clk 0:00:23]} 90. Ke2 {[%clk 0:00:10]}  f3+ {[%clk 0:00:24]} 91. Kf1 {[%clk 0:00:10]}  Kf4 {[%clk 0:00:25]} 92. Kg1 {[%clk 0:00:11]}  Kg3 {[%clk 0:00:24]} 93. Kh1 {[%clk 0:00:08]}  e2 {[%clk 0:00:24]} 0-1


[Site "https://www.chess.com"]